fUSD/lending_fUSD_20260326
["ID","MTS","AMOUNT","RATE_DAILY","PERIOD"]
[418917861,1774543844652,-151.0,0.00012613,2]
[418917862,1774543844661,-151.0,0.00012613,2]
[418917863,1774543844671,-151.0,0.00012625,2]
[418917864,1774543844680,-500.0,0.00012627,2]
[418917865,1774543844689,-1147.57,0.00012644,2]
[418917866,1774543844699,-250.0,0.00012647,2]
[418917867,1774543844708,-350.0,0.00012655,3]
[418917868,1774543844717,-151.0,0.00012666,2]
[418917869,1774543844726,-1500.0,0.00012668,2]
[418917870,1774543844735,-1500.0,0.00012668,2]
[418917871,1774543844745,-266.54,0.00012679,2]
[418917872,1774543844754,-500.0,0.00012682,2]
[418917873,1774543844763,-433.0,0.00012714,2]
[418917874,1774543844772,-350.0,0.00012748,3]
[418917875,1774543844782,-428.87,0.00012754,2]
[418917876,1774543844791,-444.20907807,0.00012754,2]
[418917877,1774543844800,-1107.0,0.00012778,5]
[418917878,1774543844810,-650.97934844,0.000128,2]
[418917879,1774543844819,-350.0,0.00012809,2]
[418917880,1774543844828,-49361.82398929,0.00012833,2]
[418917881,1774543844837,-350.0,0.00012833,4]
[418917882,1774543844847,-2385.96239098,0.00012846,2]
[418917883,1774543844856,-350.0,0.00012892,2]
[418917884,1774543844865,-400.0,0.00012893,2]
[418917885,1774543844873,-400.0,0.00012893,2]
[418917886,1774543844883,-400.0,0.00012893,2]
[418917887,1774543844892,-400.0,0.00012893,2]
[418917888,1774543844902,-197.2369,0.000129,2]
[418917889,1774543844911,-718.23472537,0.000129,2]
[418917890,1774543844921,-151.0,0.000129,2]
[418917891,1774543844931,-38525.30253405,0.00012906,2]
[418917892,1774543844940,-1147.57,0.00012918,2]
[418917893,1774543844949,-151.0,0.00012946,2]
[418917894,1774543844959,-910.0,0.00012985,5]
[418917895,1774543844969,-205.995822,0.00012989,2]
[418917896,1774543844978,-250.0,0.00013,2]
[418917897,1774543844987,-1000.0,0.00013015,2]
[418917898,1774543844996,-7776.687381,0.00013021,2]
[418917899,1774543845005,-261.963374,0.0001303,2]
[418917900,1774543845014,-1849.79076,0.0001303,2]
[418917901,1774543845024,-1000.0,0.00013042,2]
[418917902,1774543845035,-3292.0,0.00013045,2]
[418917903,1774543845045,-150.0,0.00013082,2]
[418917904,1774543845055,-232.44995365,0.00013085,2]
[418917905,1774543845064,-1491.30447232,0.00013085,2]
[418917906,1774543845074,-151.0,0.00013108,2]
[418917907,1774543845083,-151.0,0.00013108,2]
[418917908,1774543845092,-209.940266,0.00013108,2]
[418917909,1774543845101,-978.96152073,0.00013116,2]
[418917910,1774543845111,-2244.11451814,0.00013134,2]
[418917911,1774543845120,-350.0,0.00013139,2]
[418917912,1774543845128,-1000.0,0.00013172,2]
[418917913,1774543845139,-1147.57,0.00013192,2]
[418917914,1774543845150,-1007.06187853,0.00013216,2]
[418917915,1774543845161,-310.34615657,0.00013216,2]
[418917916,1774543845171,-150.0,0.00013334,2]
[418917917,1774543845180,-180.61599,0.00013335,2]
[418917918,1774543845189,-150.0,0.00013344,2]
[418917919,1774543845198,-49361.82398929,0.00013344,2]
[418917920,1774543845207,-56851.6452233,0.00013349,2]
[418917921,1774543845216,-12437.0881336,0.00013349,2]
[418917922,1774543845226,-11481.033959,0.00013349,2]
[418917923,1774543845235,-1735.2135007,0.00013349,2]
[418917924,1774543845245,-1000.0,0.00013392,2]
[418917925,1774543845254,-2000.0,0.00013394,2]
[418917926,1774543845263,-1000.0,0.00013398,2]
[418917927,1774543845272,-1000.0,0.00013409,2]
[418917928,1774543845281,-3240.0,0.00013425,2]
[418917929,1774543845290,-400.0,0.00013425,2]
[418917930,1774543845299,-400.0,0.00013425,2]
[418917931,1774543845308,-400.0,0.00013425,2]
[418917932,1774543845317,-400.0,0.00013425,2]
[418917933,1774543845326,-294.8,0.00013435,2]
[418917934,1774543845336,-151.0,0.00013439,2]
[418917935,1774543845346,-1147.64625134,0.00013466,2]
[418917936,1774543845355,-839.2403,0.000135,2]
[418917937,1774543845364,-38525.30253405,0.00013505,2]
[418917938,1774543845373,-266.54,0.00013512,2]
[418917939,1774543845382,-1000.0,0.0001356,2]
[418917940,1774543845392,-1000.0,0.0001359,2]
[418917941,1774543845401,-1725.0,0.00013598,2]
[418917942,1774543845411,-9803.2899,0.000136,2]
[418917943,1774543845423,-2023.400239,0.00013622,2]
[418917944,1774543845432,-1435.83115234,0.00013633,2]
[418917945,1774543845441,-737.33249222,0.00013637,2]
[418917946,1774543845450,-718.23472537,0.0001365,2]
[418917947,1774543845460,-158.35,0.00013652,2]
[418917948,1774543845469,-266.54,0.0001368,2]
[418917949,1774543845479,-151.0,0.00013696,2]
[418917950,1774543845488,-500.0,0.00013698,2]
[418917951,1774543845497,-500.0,0.00013698,2]
[418917952,1774543845507,-500.0,0.00013698,2]
[418917953,1774543845516,-390.47678169,0.00013698,2]
[418917954,1774543845526,-500.0,0.00013698,2]
[418917955,1774543845534,-430.13502406,0.00013698,2]
[418917956,1774543845544,-500.0,0.00013698,2]
[418917957,1774543845553,-154.82251136,0.00013698,2]
[418917958,1774543845562,-285.60236439,0.00013698,2]
[418917959,1774543845571,-500.0,0.00013698,2]
[418917960,1774543845581,-500.0,0.00013698,2]
[418917961,1774543845590,-264.41973633,0.00013698,2]
[418917962,1774543845599,-500.0,0.00013698,2]
[418917963,1774543845608,-500.0,0.00013698,2]
[418917964,1774543845617,-500.0,0.00013698,2]
[418917965,1774543845627,-500.0,0.00013698,2]
[418917966,1774543845635,-500.0,0.00013698,2]
[418917967,1774543845644,-500.0,0.00013698,2]
[418917968,1774543845654,-366.7224499,0.00013698,2]
[418917969,1774543845663,-500.0,0.00013698,2]
[418917970,1774543845672,-500.0,0.00013698,2]
[418917971,1774543845681,-500.0,0.00013698,2]
[418917972,1774543845690,-500.0,0.00013698,2]
[418917973,1774543845699,-500.0,0.00013698,2]
[418917974,1774543845708,-500.0,0.00013698,2]
[418917975,1774543845717,-500.0,0.00013698,2]
[418917976,1774543845726,-150.0,0.00013699,2]
[418917977,1774543845736,-1789.83,0.00013699,2]
[418917978,1774543845745,-200.0,0.00013699,2]
[418917979,1774543845754,-414.55,0.00013699,2]
[418917980,1774543845764,-151.0,0.00013699,2]
[418917981,1774543845773,-151.0,0.00013699,2]
[418917982,1774543845782,-151.0,0.00013699,2]
[418917983,1774543845791,-151.0,0.00013699,2]
[418917984,1774543845800,-151.0,0.00013699,2]
[418917985,1774543845809,-151.0,0.00013699,2]
[418917986,1774543845819,-151.0,0.00013699,2]
[418917987,1774543845828,-151.0,0.00013699,2]
[418917988,1774543845837,-151.0,0.00013699,2]
[418917989,1774543845846,-151.0,0.00013699,2]
[418917990,1774543845855,-151.0,0.00013699,2]
[418917991,1774543845864,-151.0,0.00013699,2]
[418917992,1774543845873,-151.0,0.00013699,2]
[418917993,1774543845883,-151.0,0.00013699,2]
[418917994,1774543845893,-151.0,0.00013699,2]
[418917995,1774543845903,-151.0,0.00013699,2]
[418917996,1774543845913,-276.996238,0.00013699,2]
[418917997,1774543845924,-500.0,0.00013699,2]
[418917998,1774543845933,-500.0,0.00013699,2]
[418917999,1774543845942,-500.0,0.00013699,2]
[418918000,1774543845952,-500.0,0.00013699,2]
[418918001,1774543845961,-500.0,0.00013699,2]
[418918002,1774543845972,-500.0,0.00013699,2]
[418918003,1774543845983,-500.0,0.00013699,2]
[418918004,1774543845992,-500.0,0.00013699,2]
[418918005,1774543846003,-500.0,0.00013699,2]
[418918006,1774543846014,-500.0,0.00013699,2]
[418918007,1774543846023,-500.0,0.00013699,2]
[418918008,1774543846033,-500.0,0.00013699,2]
[418918009,1774543846042,-500.0,0.00013699,2]
[418918010,1774543846052,-548.13868249,0.00013699,2]
[418918011,1774543846061,-500.0,0.00013699,2]
[418918012,1774543846070,-500.0,0.00013699,2]
[418918013,1774543846080,-500.0,0.00013699,2]
[418918014,1774543846091,-500.0,0.00013699,2]
[418918015,1774543846100,-500.0,0.00013699,2]
[418918016,1774543846109,-500.0,0.00013699,2]
[418918017,1774543846118,-500.0,0.00013699,2]
[418918018,1774543846127,-500.0,0.00013699,2]
[418918019,1774543846136,-500.0,0.00013699,2]
[418918020,1774543846146,-500.0,0.00013699,2]
[418918021,1774543846155,-285.89,0.00013699,2]
[418918022,1774543846164,-330.65480685,0.00013699,2]
[418918023,1774543846174,-1896.2,0.000137,2]
[418918024,1774543846183,-443.18,0.000137,2]
[418918025,1774543846192,-1885.61,0.000137,2]
[418918026,1774543846201,-1895.4,0.000137,2]
[418918027,1774543846210,-150.0,0.00013736,2]
[418918028,1774543846220,-12685.3167033,0.0001375,2]
[418918029,1774543846229,-2775.089467,0.0001375,2]
[418918030,1774543846238,-2561.7649459,0.0001375,2]
[418918032,1774543846248,-500.0,0.0001381,2]
[418918034,1774543846257,-500.0,0.00013811,2]
[418918036,1774543846266,-500.0,0.00013811,2]
[418918039,1774543846275,-200.0,0.00013811,2]
[418918041,1774543846285,-2244.11451814,0.00013825,2]
[418918043,1774543846294,-49361.82398929,0.00013856,2]
[418918045,1774543846304,-877.000628,0.0001387,7]
[418918047,1774543846313,-2133.93736277,0.00013886,2]
[418918048,1774543846322,-1966.15915791,0.00013886,2]
[418918049,1774543846331,-10456.28,0.000139,2]
[418918050,1774543846340,-151.0,0.00013929,2]
[418918051,1774543846350,-627.33,0.00013935,2]
[418918052,1774543846359,-500.0,0.00013935,2]
[418918053,1774543846368,-736.0,0.00013951,2]
[418918054,1774543846377,-1113.386891,0.00013951,7]
[418918055,1774543846386,-1600.0,0.00013961,2]
[418918056,1774543846396,-150.0,0.00013973,2]
[418918057,1774543846405,-4556.43492676,0.0001399,2]
[418918058,1774543846414,-400.0,0.0001399,2]
[418918059,1774543846424,-400.0,0.0001399,2]
[418918060,1774543846433,-400.0,0.0001399,2]
[418918061,1774543846443,-400.0,0.0001399,2]
[418918062,1774543846632,-1800.11,0.00014,2]
[418918063,1774543846642,-504.0,0.00014,2]
[418918064,1774543846652,-1012.0,0.00014,2]
[418918065,1774543846661,-38525.30253405,0.00014104,2]
[418918066,1774543846670,-476.91868782,0.0001411,2]
[418918067,1774543846680,-150.0,0.00014129,2]
[418918068,1774543846690,-150.0,0.0001419,2]
[418918069,1774543846701,-240.0,0.0001419,2]
[418918070,1774543846711,-150.119,0.0001419,2]
[418918071,1774543846720,-150.0,0.0001419,2]
[418918072,1774543846729,-150.0,0.0001419,2]
[418918073,1774543846738,-259.3494,0.000142,2]
[418918074,1774543846747,-500.77630236,0.00014247,2]
[418918075,1774543846756,-397.4813256,0.00014247,2]
[418918076,1774543846782,-168.81804537,0.00014247,2]
[418918077,1774543846791,-831.18195463,0.00014247,2]
[418918078,1774543846974,-168.81804537,0.00014247,2]
[418918079,1774543846983,-1000.0,0.00014247,2]
[418918080,1774543846992,-500.75630321,0.00014247,2]
[418918081,1774543847002,-1000.0,0.00014247,2]
[418918082,1774543847012,-1000.0,0.00014247,2]
[418918083,1774543847021,-642.95051785,0.00014247,2]
[418918084,1774543847031,-874.31074407,0.00014247,2]
[418918085,1774543847040,-418.56315304,0.00014247,2]
[418918086,1774543847050,-1000.0,0.00014247,2]
[418918087,1774543847060,-1000.0,0.00014247,2]
[418918089,1774543847070,-1000.0,0.00014247,2]
[418918090,1774543847079,-1007.33813259,0.00014247,2]
[418918091,1774543847088,-1000.0,0.00014247,2]
[418918092,1774543847098,-1000.0,0.00014247,2]
[418918093,1774543847108,-1000.0,0.00014247,2]
[418918095,1774543847117,-1000.0,0.00014247,2]
[418918096,1774543847126,-1000.92226367,0.00014247,2]
[418918097,1774543847135,-1000.0,0.00014247,2]
[418918098,1774543847145,-1000.0,0.00014247,2]
[418918099,1774543847154,-234.15208143,0.00014247,2]
[418918101,1774543847163,-433.52493421,0.00014247,2]
[418918103,1774543847172,-1000.0,0.00014263,2]
[418918104,1774543847181,-1000.0,0.00014291,2]
[418918106,1774543847191,-168.12,0.00014334,2]
[418918107,1774543847202,-168.12,0.00014334,2]
[418918108,1774543847211,-168.12,0.00014334,2]
[418918109,1774543847221,-4609.0,0.00014349,2]
[418918110,1774543847230,-650.97934844,0.0001435,2]
[418918111,1774543847240,-1000.0,0.00014365,2]
[418918112,1774543847249,-49361.82398929,0.00014367,2]
[418918113,1774543847258,-2385.96239098,0.00014373,2]
[418918114,1774543847267,-414.55,0.00014384,2]
[418918115,1774543847277,-1000.0,0.00014385,2]
[418918116,1774543847286,-1523.0,0.0001439,2]
[418918117,1774543847295,-713.93598793,0.0001439,2]
[418918118,1774543847305,-718.23472537,0.000144,2]
[418918119,1774543847314,-1000.0,0.00014406,2]
[418918120,1774543847324,-177.69,0.00014445,2]
[418918121,1774543847333,-300.0,0.00014482,2]
[418918122,1774543847342,-300.0,0.00014482,2]
[418918123,1774543847351,-300.0,0.00014482,2]
[418918124,1774543847360,-300.0,0.00014482,2]
[418918125,1774543847369,-300.0,0.00014482,2]
[418918126,1774543847379,-300.0,0.00014482,2]
[418918127,1774543847389,-300.0,0.00014482,2]
[418918128,1774543847400,-300.0,0.00014482,2]
[418918129,1774543847411,-414.0,0.00014482,2]
[418918130,1774543847423,-312.0,0.000145,2]
[418918131,1774543847433,-308.0,0.000145,2]
[418918132,1774543847442,-2244.11451814,0.00014517,2]
[418918133,1774543847452,-177.69,0.00014544,2]
[418918134,1774543847461,-150.0,0.00014551,2]
[418918135,1774543847470,-5888.0,0.00014565,2]
[418918136,1774543847480,-5888.0,0.00014594,2]
[418918137,1774543847489,-2000.0,0.00014612,2]
[418918138,1774543847499,-177.69,0.00014644,2]
[418918139,1774543847510,-150.0,0.00014652,2]
[418918140,1774543847519,-150.0,0.00014652,2]
[418918141,1774543847529,-388.43757161,0.00014655,2]
[418918142,1774543847539,-500.0,0.00014655,2]
[418918143,1774543847549,-500.0,0.00014655,2]
[418918144,1774543847559,-1045.0,0.00014664,2]
[418918145,1774543847569,-1345.0,0.00014664,2]
[418918146,1774543847578,-3516.0,0.00014664,2]
[418918147,1774543847587,-150.143,0.00014664,2]
[418918148,1774543847596,-1263.913,0.00014664,2]
[418918149,1774543847606,-3763.0,0.00014664,2]
[418918150,1774543847615,-415.0,0.00014664,2]
[418918151,1774543847624,-2467.0,0.00014664,2]
[418918152,1774543847634,-250.0,0.00014671,2]
[418918153,1774543847643,-250.0,0.00014671,2]
[418918154,1774543847652,-250.0,0.00014671,2]
[418918155,1774543847661,-250.0,0.00014671,2]
[418918156,1774543847672,-250.0,0.00014671,2]
[418918157,1774543847681,-250.0,0.00014671,2]
[418918158,1774543847691,-250.0,0.00014671,2]
[418918159,1774543847702,-250.0,0.00014671,2]
[418918160,1774543847711,-250.0,0.00014671,2]
[418918161,1774543847721,-220.0,0.00014671,2]
[418918162,1774543847730,-5888.0,0.00014679,2]
[418918163,1774543847739,-158.35,0.00014702,2]
[418918164,1774543847749,-38525.30253405,0.00014702,2]
[418918165,1774543847758,-1000.0,0.00014707,2]
[418918166,1774543847768,-1000.0,0.00014707,2]
[418918167,1774543847777,-1000.0,0.00014707,2]
[418918168,1774543847787,-1000.0,0.00014707,2]
[418918169,1774543847796,-1000.0,0.00014707,2]
[418918170,1774543847805,-1000.0,0.00014707,2]
[418918171,1774543847815,-1000.0,0.00014707,2]
[418918172,1774543847825,-1000.0,0.00014707,2]
[418918173,1774543847835,-1000.0,0.00014707,2]
[418918174,1774543847845,-713.0,0.00014707,2]
[418918175,1774543847854,-500.0,0.00014727,2]
[418918176,1774543847863,-500.0,0.00014727,2]
[418918177,1774543847872,-500.0,0.00014727,2]
[418918178,1774543847882,-500.0,0.00014727,2]
[418918179,1774543847891,-500.0,0.00014727,2]
[418918180,1774543847901,-1000.0,0.00014729,2]
[418918181,1774543847910,-500.0,0.00014729,2]
[418918182,1774543847919,-500.0,0.00014729,2]
[418918183,1774543847928,-500.0,0.00014729,2]
[418918184,1774543847938,-500.0,0.00014729,2]
[418918185,1774543847948,-500.0,0.00014743,2]
[418918186,1774543847958,-151.0,0.0001477,2]
[418918187,1774543847968,-1500.0,0.00014795,2]
[418918188,1774543847977,-830.27435382,0.00014795,2]
[418918189,1774543847986,-1409.38735598,0.00014795,2]
[418918190,1774543847997,-1500.0,0.00014795,2]
[418918191,1774543848008,-683.65884113,0.00014795,2]
[418918192,1774543848018,-1500.0,0.00014795,2]
[418918193,1774543848027,-1500.0,0.00014795,2]
[418918194,1774543848037,-1500.0,0.00014795,2]
[418918195,1774543848046,-1075.34860635,0.00014795,2]
[418918196,1774543848055,-1079.19039319,0.00014795,2]
[418918197,1774543848065,-1500.0,0.00014795,2]
[418918198,1774543848074,-677.77703353,0.00014795,2]
[418918199,1774543848084,-707.30111,0.00014807,7]
[418918200,1774543848093,-3329.623368,0.00014807,7]
[418918201,1774543848103,-1156.16747657,0.00014809,5]
[418918202,1774543848113,-500.0,0.00014822,2]
[418918203,1774543848123,-150.0,0.00014822,2]
[418918204,1774543848133,-500.0,0.00014822,2]
[418918205,1774543848143,-150.0,0.00014822,2]
[418918206,1774543848152,-500.0,0.00014822,2]
[418918207,1774543848163,-150.0,0.00014822,2]
[418918208,1774543848173,-500.0,0.00014822,2]
[418918209,1774543848183,-157.62886977,0.00014822,2]
[418918210,1774543848192,-282.81610969,0.00014822,2]
[418918211,1774543848203,-500.0,0.00014822,2]
[418918212,1774543848214,-500.0,0.00014822,2]
[418918213,1774543848223,-643.67228165,0.00014822,2]
[418918214,1774543848233,-500.0,0.00014822,2]
[418918215,1774543848243,-500.0,0.00014822,2]
[418918216,1774543848253,-323.33316346,0.00014822,2]
[418918217,1774543848262,-500.0,0.00014825,2]
[418918218,1774543848273,-500.0,0.00014825,2]
[418918219,1774543848283,-500.0,0.00014825,2]
[418918220,1774543848292,-500.0,0.00014825,2]
[418918221,1774543848301,-500.0,0.00014825,2]
[418918222,1774543848311,-500.0,0.00014825,2]
[418918223,1774543848320,-500.0,0.00014825,2]
[418918224,1774543848330,-500.0,0.00014825,2]
[418918225,1774543848339,-500.0,0.00014825,2]
[418918226,1774543848349,-500.0,0.00014825,2]
[418918227,1774543848358,-627.90943667,0.00014825,2]
[418918228,1774543848367,-500.0,0.00014825,2]
[418918229,1774543848377,-500.0,0.00014825,2]
[418918230,1774543848387,-500.0,0.00014825,2]
[418918231,1774543848396,-500.0,0.00014825,2]
[418918232,1774543848405,-500.0,0.00014825,2]
[418918233,1774543848415,-500.0,0.00014825,2]
[418918234,1774543848424,-500.0,0.00014825,2]
[418918235,1774543848434,-500.0,0.00014825,2]
[418918236,1774543848444,-500.0,0.00014825,2]
[418918237,1774543848453,-500.0,0.00014825,2]
[418918238,1774543848463,-500.0,0.00014825,2]
[418918239,1774543848473,-500.0,0.00014825,2]
[418918240,1774543848482,-500.0,0.00014825,2]
[418918241,1774543848492,-500.0,0.00014825,2]
[418918242,1774543848501,-150.0,0.00014825,2]
[418918243,1774543848511,-500.0,0.00014825,2]
[418918244,1774543848520,-500.0,0.00014825,2]
[418918245,1774543848529,-151.26186243,0.00014825,2]
[418918246,1774543848539,-500.0,0.00014825,2]
[418918247,1774543848548,-500.0,0.00014825,2]
[418918248,1774543848558,-356.91895717,0.00014825,2]
[418918249,1774543848568,-500.0,0.00014825,2]
[418918250,1774543848577,-500.0,0.00014825,2]
[418918251,1774543848587,-500.0,0.00014825,2]
[418918252,1774543848596,-500.0,0.00014825,2]
[418918253,1774543848605,-500.0,0.00014825,2]
[418918254,1774543848615,-500.0,0.00014825,2]
[418918255,1774543848624,-500.0,0.00014825,2]
[418918256,1774543848634,-500.0,0.00014825,2]
[418918257,1774543848643,-500.0,0.00014825,2]
[418918258,1774543848652,-500.0,0.00014825,2]
[418918259,1774543848661,-500.0,0.00014825,2]
[418918260,1774543848671,-500.0,0.00014825,2]
[418918261,1774543848680,-500.0,0.00014825,2]
[418918262,1774543848689,-500.0,0.00014825,2]
[418918263,1774543848699,-500.0,0.00014825,2]
[418918264,1774543848708,-500.0,0.00014825,2]
[418918265,1774543848718,-500.0,0.00014825,2]
[418918266,1774543848727,-500.0,0.00014825,2]
[418918267,1774543848736,-500.0,0.00014825,2]
[418918268,1774543848745,-500.0,0.00014825,2]
[418918269,1774543848755,-500.0,0.00014825,2]
[418918270,1774543848764,-500.0,0.00014825,2]
[418918271,1774543848774,-500.0,0.00014825,2]
[418918272,1774543848784,-500.0,0.00014825,2]
[418918273,1774543848794,-500.0,0.00014825,2]
[418918274,1774543848805,-500.0,0.00014825,2]
[418918275,1774543848815,-500.0,0.00014825,2]
[418918276,1774543848825,-500.0,0.00014825,2]
[418918277,1774543848835,-500.0,0.00014825,2]
[418918278,1774543848845,-188.31660874,0.00014825,2]
[418918279,1774543848855,-500.0,0.00014825,2]
[418918280,1774543848864,-500.0,0.00014825,2]
[418918281,1774543848874,-150.0,0.00014825,2]
[418918282,1774543848885,-500.0,0.00014825,2]
[418918283,1774543848895,-500.0,0.00014825,2]
[418918284,1774543848904,-500.0,0.00014825,2]
[418918285,1774543848970,-500.0,0.00014825,2]
[418918286,1774543848979,-500.0,0.00014825,2]
[418918287,1774543848988,-500.0,0.00014825,2]
[418918288,1774543848998,-500.0,0.00014825,2]
[418918289,1774543849007,-500.0,0.00014825,2]
[418918290,1774543849016,-500.0,0.00014825,2]
[418918291,1774543849026,-500.0,0.00014825,2]
[418918292,1774543849035,-500.0,0.00014825,2]
[418918293,1774543849044,-500.0,0.00014825,2]
[418918294,1774543849054,-500.0,0.00014825,2]
[418918295,1774543849063,-500.0,0.00014825,2]
[418918296,1774543849072,-500.0,0.00014825,2]
[418918297,1774543849082,-500.0,0.00014825,2]
[418918298,1774543849092,-500.0,0.00014825,2]
[418918299,1774543849102,-500.0,0.00014825,2]
[418918300,1774543849113,-500.0,0.00014825,2]
[418918301,1774543849122,-500.0,0.00014825,2]
[418918302,1774543849131,-500.0,0.00014825,2]
[418918303,1774543849141,-500.0,0.00014825,2]
[418918304,1774543849150,-500.0,0.00014825,2]
[418918305,1774543849159,-500.0,0.00014825,2]
[418918306,1774543849168,-500.0,0.00014825,2]
[418918307,1774543849179,-500.0,0.00014825,2]
[418918308,1774543849189,-500.0,0.00014825,2]
[418918309,1774543849198,-301.73235025,0.00014825,2]
[418918310,1774543849209,-500.0,0.00014825,2]
[418918311,1774543849218,-500.0,0.00014825,2]
[418918312,1774543849228,-639.58784564,0.00014825,2]
[418918313,1774543849238,-500.0,0.00014825,2]
[418918314,1774543849248,-500.0,0.00014825,2]
[418918315,1774543849258,-500.0,0.00014825,2]
[418918316,1774543849267,-500.0,0.00014825,2]
[418918317,1774543849276,-500.0,0.00014825,2]
[418918318,1774543849287,-500.0,0.00014825,2]
[418918319,1774543849297,-500.0,0.00014825,2]
[418918320,1774543849308,-500.0,0.00014825,2]
[418918321,1774543849317,-287.62669579,0.00014825,2]
[418918322,1774543849327,-470.0,0.00014825,2]
[418918323,1774543849337,-500.0,0.00014825,2]
[418918324,1774543849348,-500.0,0.00014825,2]
[418918325,1774543849357,-500.0,0.00014825,2]
[418918326,1774543849367,-500.0,0.00014825,2]
[418918327,1774543849376,-500.0,0.00014825,2]
[418918328,1774543849386,-500.0,0.00014825,2]
[418918329,1774543849395,-500.0,0.00014825,2]
[418918330,1774543849404,-500.0,0.00014825,2]
[418918331,1774543849413,-500.0,0.00014825,2]
[418918332,1774543849422,-500.0,0.00014825,2]
[418918333,1774543849432,-500.0,0.00014825,2]
[418918334,1774543849441,-150.0,0.00014825,2]
[418918335,1774543849450,-500.0,0.00014825,2]
[418918336,1774543849460,-150.0,0.00014825,2]
[418918337,1774543849469,-500.0,0.00014825,2]
[418918338,1774543849478,-500.0,0.00014825,2]
[418918339,1774543849487,-500.0,0.00014825,2]
[418918340,1774543849496,-500.0,0.00014825,2]
[418918341,1774543849505,-500.0,0.00014825,2]
[418918342,1774543849514,-500.0,0.00014825,2]
[418918343,1774543849524,-500.0,0.00014825,2]
[418918344,1774543849534,-500.0,0.00014825,2]
[418918345,1774543849543,-500.0,0.00014825,2]
[418918346,1774543849555,-500.0,0.00014825,2]
[418918347,1774543849565,-220.0,0.00014825,2]
[418918348,1774543849574,-500.0,0.00014825,2]
[418918349,1774543849583,-500.0,0.00014825,2]
[418918350,1774543849592,-500.0,0.00014825,2]
[418918351,1774543849601,-472.44900088,0.00014825,2]
[418918352,1774543849610,-500.0,0.00014828,2]
[418918353,1774543849619,-500.0,0.00014828,2]
[418918354,1774543849628,-500.0,0.00014828,2]
[418918355,1774543849637,-500.0,0.00014828,2]
[418918356,1774543849647,-500.0,0.00014828,2]
[418918357,1774543849656,-500.0,0.00014828,2]
[418918358,1774543849665,-500.0,0.00014828,2]
[418918359,1774543849675,-219.14333175,0.00014828,2]
[418918360,1774543849684,-428.0,0.00014828,2]
[418918361,1774543849693,-500.0,0.00014828,2]
[418918362,1774543849702,-500.0,0.00014828,2]
[418918363,1774543849711,-428.0,0.00014828,2]
[418918364,1774543849720,-500.0,0.00014828,2]
[418918365,1774543849730,-500.0,0.00014828,2]
[418918366,1774543849739,-150.40830291,0.00014828,2]
[418918367,1774543850044,-277.59169709,0.00014828,2]
[418918368,1774543850053,-500.0,0.00014828,2]
[418918369,1774543850062,-500.0,0.00014828,2]
[418918370,1774543850071,-428.0,0.00014828,2]
[418918371,1774543850080,-411.52386378,0.00014828,2]
[418918372,1774543850089,-500.0,0.00014828,2]
[418918373,1774543850098,-428.0,0.00014828,2]
[418918374,1774543850108,-500.0,0.00014828,2]